Cogmind - Beta 12 @@@ ROGUE MODE // 2024.01.21 @ 23:10:38 Player: puppuppit Result: Destroyed by Y-54 Guardian with Gatling Laser Performance ------------- Evolutions (3) 1500 Regions Visited (10) 2000 Robots Destroyed (239) 1195 Value Destroyed (7569) 7569 Prototype IDs (41) 820 Alien Tech Used (0) 0 Bonus (4698) 4698 TOTAL SCORE: 17782 Bonus ------- Triggered High Security 500 High Alert Combat Kills 3452 Follower Combat Kills 450 Entered Garrisons 200 Aligned with FarCom 300 Friendly Fire -204 Cogmind --------- Core Integrity 0/700 Matter 82/300 Energy 99/100 System Corruption 4% Temperature Cool (12) Movement Core (50) Location -7/Factory Parts ------- > --- POWER (1) -------- (None) > --- PROPULSION (4) --- Gyrokinetic Inverter > --- UTILITY (6) ------ (None) > --- WEAPON (2) ------- (None) > --- INVENTORY (5) ---- Micro Nuclear Core Micro Nuclear Core Improved Shock Absorption System Enhanced Autogun Gauss Cannon Peak State ------------ > --- POWER ------------ Improved Deuterium Engine > --- PROPULSION ------- Aerolev Unit Gravmag System Antigrav System Gyrokinetic Inverter > --- UTILITY ---------- Medium Storage Unit Improved Shock Absorption System Remote Shield Hacking Suite Hacking Suite Authchip [R/Combat] > --- WEAPON ----------- Smartbomb Launcher > --- INVENTORY -------- Micro Nuclear Core Micro Nuclear Core Micro Nuclear Core Compact Battery Compact Matter Pod Compact Matter Pod Authchip [R/Combat] Enhanced Autogun Enhanced Autogun Mini Assault Cannon [Rating: 61] Favorites ----------- Power Light Nuclear Core Engine Light Ion Engine Power Core Light Nuclear Core Propulsion Gravmag System Leg Aluminum Leg Wheel Compact Wheel Hover Unit Gravmag System Flight Unit Flight Unit Utility Medium Storage Unit Device Remote Shield Storage Medium Storage Unit Processor Advanced Targeting Computer Hackware Hacking Suite Protection Improved Medium Armor Plating Weapon Enhanced Autogun Energy Gun Medium Laser Energy Cannon Heavy Particle Cannon Ballistic Gun Enhanced Autogun Ballistic Cannon Mini Assault Cannon Launcher Advanced EMP Blaster Build | -11 -10 -10 -9 -9 -9 -8 -8 -8 -8 -7 ------- Run | Jun Mat Min Mat Min Exi Min Mat Sto Gar Fac Slots Evolved 6 | . . . 2 . . . 2 . . 2 Power . | . . . . . . . . . . . Propulsion 2 | . . . 2 . . . . . . . Utility 4 | . . . . . . . 2 . . 2 Weapon . | . . . . . . . . . . . Parts Attached 185 | 6 12 . 43 1 4 . 43 25 20 31 Power 22 | 1 1 . 4 1 . . 7 2 2 4 Engine 9 | 1 1 . 3 1 . . 2 . . 1 Core 13 | . . . 1 . . . 5 2 2 3 Reactor . | . . . . . . . . . . . Propulsion 53 | 2 6 . 16 . 1 . 7 7 5 9 Treads . | . . . . . . . . . . . Leg 2 | . . . 2 . . . . . . . Wheel 4 | 2 2 . . . . . . . . . Hover 36 | . . . 10 . . . 6 7 4 9 Flight 11 | . 4 . 4 . 1 . 1 . 1 . Utility 39 | 1 1 . 4 . 1 . 12 7 5 8 Device 12 | . . . 1 . . . 4 4 1 2 Storage 11 | 1 . . 1 . 1 . 2 2 1 3 Processor 4 | . 1 . 1 . . . 1 1 . . Hackware 4 | . . . . . . . 1 . 2 1 Protection 8 | . . . 1 . . . 4 . 1 2 Artifact . | . . . . . . . . . . . Weapon 71 | 2 4 . 19 . 2 . 17 9 8 10 Energy Gun 11 | 1 2 . 4 . . . 3 1 . . Energy Cannon 2 | . . . 2 . . . . . . . Ballistic Gun 33 | 1 2 . 10 . 2 . 7 4 3 4 Ballistic Cannon 9 | . . . . . . . . 3 3 3 Launcher 16 | . . . 3 . . . 7 1 2 3 Special Weapon . | . . . . . . . . . . . Impact Weapon . | . . . . . . . . . . . Slashing Weapon . | . . . . . . . . . . . Piercing Weapon . | . . . . . . . . . . . Special Melee Weapon . | . . . . . . . . . . . Unidentified Prototypes 10 | . . . 4 . . . 4 2 . . Corrupted Parts 2 | . . . 1 . . . 1 . . . System Corruption 2 | . . . 1 . . . 1 . . . Parts Lost 37 | . 3 . 4 . . . 7 . 5 18 Power 5 | . 1 . 1 . . . 2 . . 1 Propulsion 15 | . 2 . 3 . . . . . 3 7 Utility 13 | . . . . . . . 3 . 2 8 Weapon 4 | . . . . . . . 2 . . 2 Highest Loss Streak 14 | . 1 . 2 . . . 2 . 2 14 To Critical Strikes . | . . . . . . . . . . . Average Slot Usage (%) 88 | . 91 85 95 100 72 66 73 100 96 85 Engine 3 | . 8 . 3 11 11 11 2 . . 5 Core 5 | . . . 6 . . . 6 9 9 1 Leg 2 | . . . 12 . . . . . . . Wheel 1 | . 18 . . . . . . . . . Hover 20 | . . . 20 44 22 . 4 36 31 28 Flight 6 | . 9 28 9 . 5 11 7 . 2 . Device 4 | . . . 1 . . . 2 11 7 8 Storage 11 | . 14 14 11 11 11 11 12 9 11 11 Processor 5 | . 11 14 8 . . . 2 5 7 . Hackware 4 | . . . . . . . 7 . 8 17 Protection 4 | . . . . 11 11 11 8 8 . . Energy Gun 2 | . 14 14 2 . . . . . . . Ballistic Gun 12 | . 14 14 16 22 11 22 12 9 11 3 Ballistic Cannon 2 | . . . . . . . . 8 5 2 Launcher 1 | . . . 2 . . . 5 . 1 2 Naked Turns . | . . . . . . . . . . . Heaviest Build 39 | 12 12 8 16 16 21 21 37 34 29 39 Greatest Support 50 | 32 32 8 30 18 50 50 50 35 39 40 Greatest Overweight (x) 3 | . 2 . 2 . 3 . 3 . 1 1 Average Overweight (x) . | . . . . . . . . . . . Largest Inventory Capacity 10 | 8 8 8 8 8 10 10 10 10 10 10 Average Capacity 9 | 6 8 8 8 8 8 10 10 10 10 9 Most Carried 10 | 2 8 8 8 8 8 10 10 10 10 10 Average Carried 8 | . 5 7 7 8 8 9 9 9 9 8 Final Capacity 10 | 8 8 8 8 8 10 10 10 10 10 5 Final Carried 10 | 1 8 8 8 8 8 10 10 9 10 5 Class Distribution -------------------- 67% | Mutant 25% | Scavenger-Mutant 6% | Hacker-Mutant Dominant Class ---------------- Mutant | -10/Materials Mutant | -10/Mines Scavenger-Mutant | -9/Materials Scavenger-Mutant | -9/Mines Scavenger-Mutant | -9/Exiles Mutant | -8/Mines Mutant | -8/Materials Mutant | -8/Storage Mutant | -8/Garrison Hacker-Mutant | -7/Factory Resources | -11 -10 -10 -9 -9 -9 -8 -8 -8 -8 -7 ----------- Run | Jun Mat Min Mat Min Exi Min Mat Sto Gar Fac Matter Collected 6329 | 165 242 470 1081 185 . 46 1448 1236 816 640 Remotely 976 | . . . . . . . . 659 317 . Salvage Created 7890 | . 468 95 1274 123 . . 2516 1437 841 1136 Parts 515 | . 42 . 98 12 . . 144 98 55 66 Haulers Intercepted 18 | . . . 5 . . . 5 6 . 2 Recyclers Shooed 5 | . . 1 2 . . . 2 . . . Parts Field Recycled . | . . . . . . . . . . . Retrieved Matter . | . . . . . . . . . . . Parts Self-Destructed . | . . . . . . . . . . . Prevented . | . . . . . . . . . . . Kills | -11 -10 -10 -9 -9 -9 -8 -8 -8 -8 -7 ------- Run | Jun Mat Min Mat Min Exi Min Mat Sto Gar Fac Combat Hostiles Destroyed 163 | . 11 1 31 . . . 36 27 24 33 Guns 75 | . 11 1 18 . . . 23 9 11 2 Cannons 23 | . . . 1 . . . . 16 5 1 AOE 61 | . . . 12 . . . 10 1 8 30 Classes Destroyed 17 | . 7 . 4 1 . . 4 . . 1 Worker 13 | . 1 . . 1 . . 2 4 . 5 Builder 13 | . . . . . . . 11 . . 2 Tunneler 3 | . . . . 2 . . . . . 1 Hauler 18 | . . . 5 . . . 5 6 . 2 Recycler 7 | . 1 1 1 1 . . 2 . . 1 Mechanic 4 | . 1 . . . . . 1 1 . 1 Operator 9 | . 1 . 2 . . . 3 2 . 1 Watcher 9 | . 1 . 4 . . . 2 2 . . Swarmer 37 | . 6 . 11 . . . 7 4 9 . Grunt 80 | . 5 1 13 . . . 19 11 10 21 Brawler 2 | . . . 1 . . . . 1 . . Duelist 5 | . . . . . . . 1 . . 4 Protector 3 | . . . 1 . . . . . . 2 Sentry 30 | . . . 5 . . . 6 10 5 4 Hunter 3 | . . . . . . . 1 1 . 1 Programmer 1 | . . . . . . . . . . 1 Heavy 2 | . . . . . . . 2 . . . Best Kill Streak 19 | . 4 1 9 1 . . 11 5 8 19 Combat Bots Only 17 | . 3 1 7 . . . 4 5 8 17 Max Kills in Single Turn 6 | . 1 1 3 1 . . 3 2 3 6 Gunslinging 1 | . . . . . . . 1 . . . Exploded 6 | . . . 3 . . . 2 1 3 6 Melee . | . . . . . . . . . . . Uniques/NPCs Destroyed . | . . . . . . . . . . . Combat | -11 -10 -10 -9 -9 -9 -8 -8 -8 -8 -7 -------- Run | Jun Mat Min Mat Min Exi Min Mat Sto Gar Fac Damage Taken 6231 | . 443 . 480 . . . 2035 808 477 1988 Core 1310 | . 110 . 68 . . . 228 130 72 702 Absorbed by Shields 162 | . . . . . . . 28 . 60 74 Redirected to Shielding 103 | . . . . . . . 103 . . . Regen/Repaired (Parts) 545 | . . . 120 . . . 288 137 . . Core Remaining (%) 65 | 100 . 56 . . . 83 . . 21 . Volleys Fired 543 | . 45 12 99 14 . . 145 101 65 62 Largest 2 | . 2 2 2 2 . . 2 2 2 2 Hottest 100 | . 70 70 100 50 . . 61 73 73 76 Shots Fired 980 | . 89 22 190 28 . . 261 195 113 82 Gun 714 | . 89 22 176 28 . . 208 96 70 25 Cannon 162 | . . . 2 . . . . 97 34 29 Launcher 104 | . . . 12 . . . 53 2 9 28 Special . | . . . . . . . . . . . Kinetic 799 | . 45 12 155 28 . . 208 193 104 54 Thermal 72 | . 44 10 18 . . . . . . . Explosive 40 | . . . 12 . . . . . . 28 Electromagnetic 69 | . . . 5 . . . 53 2 9 . Robot Hit Streak 22 | . 12 13 15 5 . . 21 22 8 16 Robot Miss Streak 5 | . 4 1 4 5 . . 5 4 3 5 Penetration Max 1 | . . . . . . . . . . 1 Secondary Targets 6 | . 1 . 1 . . . 3 . 1 . Max Gunslinging Chain 1 | . 1 . 1 . . . 1 . 1 . Shots Hit Robots 586 | . 56 17 120 13 . . 155 129 53 43 Core Hits 384 | . 25 6 61 4 . . 104 55 37 92 Critical Kills 1 | . . . . . . . 1 . . . Critical Parts Destroyed 2 | . . . . . . . . 1 1 . Critical Strikes 11 | . 3 . 1 . . . 1 4 1 1 Burn 4 | . 3 . 1 . . . . . . . Destroy 3 | . . . . . . . 1 1 1 . Blast 4 | . . . . . . . . 3 . 1 Melee Attacks . | . . . . . . . . . . . Impact . | . . . . . . . . . . . Slashing . | . . . . . . . . . . . Piercing . | . . . . . . . . . . . Sneak Attacks . | . . . . . . . . . . . Combat Hostiles . | . . . . . . . . . . . Follow-up Attacks . | . . . . . . . . . . . Damage Inflicted 20109 | . 744 168 2918 216 . . 4838 3227 1320 6678 Guns 7504 | . 744 168 1906 216 . . 2252 1169 707 342 Cannons 2476 | . . . 54 . . . . 1857 324 241 Explosions 10117 | . . . 958 . . . 2586 201 289 6083 Melee . | . . . . . . . . . . . Ramming 12 | . . . . . . . . . . 12 Kinetic 9207 | . 333 66 1700 216 . . 2252 3026 1031 583 Thermal 1874 | . 411 102 261 . . . 534 . . 566 Explosive 6457 | . . . 877 . . . . 63 . 5517 Electromagnetic 2559 | . . . 80 . . . 2052 138 289 . Impact . | . . . . . . . . . . . Slashing . | . . . . . . . . . . . Piercing . | . . . . . . . . . . . Highest Corruption 4 | . 1 1 1 1 1 1 4 4 4 4 Average Corruption 2 | . 1 1 1 1 1 1 2 4 4 1 Corruption Purged . | . . . . . . . . . . . Corruption Blocked . | . . . . . . . . . . . Effects 65 | . 3 2 6 3 1 2 12 19 16 1 Message Errors 11 | . . . 2 . . . 2 6 1 . Matter Fused 18 | . 2 1 . . . . 5 4 5 1 Heat Flow Errors 7 | . . . 2 . 1 2 . 1 1 . Energy Discharges 5 | . . 1 2 . . . . 2 . . Parts Rejected 1 | . . . . . . . 1 . . . Parts Fused 1 | . . . . . . . . 1 . . Data Loss (minor) 6 | . . . . . . . 2 . 4 . Data Loss (major) 2 | . . . . . . . . 2 . . Misfires 6 | . 1 . . 1 . . 1 1 2 . Alerts 3 | . . . . 1 . . . . 2 . Weapon Failures 5 | . . . . 1 . . 1 2 1 . Overload Shots . | . . . . . . . . . . . Overflow Damage 352 | . . . 23 . . . 41 83 . 205 Projectiles 65 | . . . . . . . . 65 . . Explosions 287 | . . . 23 . . . 41 18 . 205 Melee . | . . . . . . . . . . . Knockbacks 15 | . . . . . . . . 14 . 1 Impact . | . . . . . . . . . . . Kinetic 14 | . . . . . . . . 13 . 1 Secondary 1 | . . . . . . . . 1 . . Self-Inflicted Damage 260 | . . . 9 . . . 153 . 27 71 Shots 18 | . . . 1 . . . 13 . 3 1 Rammed 2 | . . . . . . . . . . 2 Targets Rammed 2 | . . . . . . . . . . 2 Kicked . | . . . . . . . . . . . Crushed . | . . . . . . . . . . . Highest Temperature 297 | . 202 53 104 20 242 195 172 297 192 189 Average Temperature 46 | . 50 19 30 9 127 90 41 129 48 51 Received Heat Transfer 1674 | . 96 . 198 . . . 427 369 207 377 Effects 2 | . . . . . . . . 2 . . Interference 2 | . . . . . . . . 2 . . Siege Activations . | . . . . . . . . . . . Robots Corrupted 4 | . . . . . . . 3 1 . . Combat Hostiles 4 | . . . . . . . 3 1 . . Parts Fried 14 | . . . . . . . 13 . 1 . Impact Corruptions 1 | . . . . . . . . 1 . . Robots Melted . | . . . . . . . . . . . Combat Hostiles . | . . . . . . . . . . . Parts Melted 3 | . 1 . 2 . . . . . . . Heat Transferred 3532 | . 1443 296 668 . . . 800 . . 325 Parts Sabotaged . | . . . . . . . . . . . Parts Stolen . | . . . . . . . . . . . Parts Stripped . | . . . . . . . . . . . Power Chain Reactions 17 | . . . 2 . . . 13 . 2 . Missiles Intercepted . | . . . . . . . . . . . Alert | -11 -10 -10 -9 -9 -9 -8 -8 -8 -8 -7 ------- Run | Jun Mat Min Mat Min Exi Min Mat Sto Gar Fac Peak Influence 2905 | . 337 176 877 362 . 66 1226 1418 1669 2905 Initial 921 | . . 131 68 342 . . 25 517 921 875 Average 812 | . 157 142 547 349 . 23 654 965 1249 2084 Maximum Alert Level 5 | . 1 . 3 1 . . 4 4 5 5 Low Security (%) 20 | 100 61 100 17 . . 100 15 . . . Level 1 10 | . 38 . 12 100 . . 7 . . . Level 2 15 | . . . 34 . . . 33 11 . . Level 3 31 | . . . 35 . . . 27 68 43 11 Level 4 12 | . . . . . . . 16 20 37 . Level 5 4 | . . . . . . . . . 19 19 High Security 6 | . . . . . . . . . . 69 Max Security . | . . . . . . . . . . . Squads Dispatched 45 | . 3 . 4 . . . 13 7 . 18 Investigation 7 | . 2 . 1 . . . 2 2 . . Extermination . | . . . . . . . . . . . Reinforcement 11 | . 1 . 2 . . . 7 1 . . Assault 18 | . . . 1 . . . 1 1 . 15 Garrison 9 | . . . . . . . 3 3 . 3 Intercept . | . . . . . . . . . . . Searches Triggered . | . . . . . . . . . . . Construction Impeded 3 | . . . . . . . 2 1 . . Haulers Reinforced . | . . . . . . . . . . . Active Scanning Responses . | . . . . . . . . . . . Cargo Convoy Interrupts . | . . . . . . . . . . . Stealth | -11 -10 -10 -9 -9 -9 -8 -8 -8 -8 -7 --------- Run | Jun Mat Min Mat Min Exi Min Mat Sto Gar Fac Distress Signals 14 | . 1 . 5 . . . 6 1 . 1 Communications Jammed . | . . . . . . . . . . . Distress Signals . | . . . . . . . . . . . Times Spotted 282 | . 17 2 44 . . 3 64 39 24 89 Peak Tracking Total 21 | . 3 2 5 . . 3 7 5 5 21 Tactical Retreats 26 | . . . 1 . . 2 13 2 1 7 Traps | -11 -10 -10 -9 -9 -9 -8 -8 -8 -8 -7 ------- Run | Jun Mat Min Mat Min Exi Min Mat Sto Gar Fac Traps Triggered 15 | . 1 . 1 . . . . . 11 2 Indirectly 1 | . . . . . . . . . 1 . Trap Hack Attempts . | . . . . . . . . . . . Triggered . | . . . . . . . . . . . Disarmed 6 | . . . . . . . . 6 . . Reprogrammed . | . . . . . . . . . . . Reused . | . . . . . . . . . . . Traps Extracted . | . . . . . . . . . . . Installed . | . . . . . . . . . . . Triggered . | . . . . . . . . . . . Machines | -11 -10 -10 -9 -9 -9 -8 -8 -8 -8 -7 ---------- Run | Jun Mat Min Mat Min Exi Min Mat Sto Gar Fac Machines Disabled 63 | . 1 . 7 . . . 2 11 4 38 Max in Single Turn 20 | . 1 . 2 . . . 1 2 1 20 Garrison Access 1 | . . . . . . . . . . 1 Garrison Relay 1 | . . . . . . . . . 1 . Machines Repaired . | . . . . . . . . . . . Machines Sabotaged . | . . . . . . . . . . . Overloaded Fab Kills . | . . . . . . . . . . . Hacking | -11 -10 -10 -9 -9 -9 -8 -8 -8 -8 -7 --------- Run | Jun Mat Min Mat Min Exi Min Mat Sto Gar Fac Machines Accessed 43 | . 3 . 7 . 5 1 8 13 5 1 Terminals 29 | . 3 . 4 . . 1 6 10 5 . Fabricators 1 | . . . . . . . . . . 1 Repair Stations 6 | . . . 2 . . . 2 2 . . Recycling Units . | . . . . . . . . . . . Scanalyzers 1 | . . . 1 . . . . . . . Garrison Access 1 | . . . . . . . . 1 . . Total Hacks 173 | . 14 . 32 . 50 4 25 37 8 3 Successful 122 | . 10 . 22 . 50 1 13 21 4 1 Failed 50 | . 4 . 10 . . 2 12 16 4 2 Catastrophic 11 | . . . 1 . . 1 2 6 1 . Database Lockouts 1 | . . . . . . 1 . . . . Manual 25 | . 1 . 4 . 1 4 8 7 . . Terminals 80 | . 14 . 12 . . 4 16 26 8 . Fabricators 3 | . . . . . . . . . . 3 Repair Stations 26 | . . . 8 . . . 9 9 . . Recycling Units . | . . . . . . . . . . . Scanalyzers 12 | . . . 12 . . . . . . . Garrison Access 2 | . . . . . . . . 2 . . Terminal Hacks 87 | . 10 . 5 . 50 1 5 12 4 . Record 51 | . 2 . . . 49 . . . . . Part Schematic 1 | . . . . . . . . 1 . . Robot Schematic 1 | . . . . . . . . 1 . . Robot Analysis 6 | . . . 2 . . . 2 2 . . Prototype ID Bank 6 | . . . 2 . . 1 2 1 . . Open Door 4 | . . . . . . . . 3 1 . Branch Access Points 1 | . 1 . . . . . . . . . Emergency Access Points 1 | . . . . . . . . . 1 . Alert Level 1 | . 1 . . . . . . . . . Disarm Traps 1 | . . . . . . . . 1 . . Dispatch Records 1 | . 1 . . . . . . . . . Transport Status 1 | . 1 . . . . . . . . . Investigation Status 1 | . 1 . . . . . . . . . Recall Investigation 1 | . 1 . . . . . . . . . Hauler Manifests 1 | . 1 . . . . . . . . . Registered Components 1 | . . . . . . . . 1 . . Zone Layout 5 | . 1 . 1 . . . 1 2 . . Garrison Registry 1 | . . . . . . . . . 1 . Security Stations 1 | . . . . . . . . . 1 . EX-Prototype ID Bank 1 | . . . . . 1 . . . . . Fabricator Hacks 1 | . . . . . . . . . . 1 Network Status 1 | . . . . . . . . . . 1 Repair Station Hacks 22 | . . . 6 . . . 8 8 . . Scan Component 11 | . . . 3 . . . 4 4 . . Repair 11 | . . . 3 . . . 4 4 . . Recycling Unit Hacks . | . . . . . . . . . . . Scanalyzer 11 | . . . 11 . . . . . . . Insert Component 5 | . . . 5 . . . . . . . Analyze 6 | . . . 6 . . . . . . . Garrison Access Hacks 1 | . . . . . . . . 1 . . Unlock Access 1 | . . . . . . . . 1 . . Unauthorized Hacks . | . . . . . . . . . . . Terminals . | . . . . . . . . . . . Fabricators . | . . . . . . . . . . . Repair Stations . | . . . . . . . . . . . Recycling Units . | . . . . . . . . . . . Scanalyzers . | . . . . . . . . . . . Garrison Access . | . . . . . . . . . . . Data Cores Recovered 1 | . . . . . . . 1 . . . Used 1 | . . . . . . . 1 . . . Hacking Detections 30 | . 3 . 5 . . 1 7 10 3 1 Full Trace Events 7 | . 2 . . . . . 2 2 1 . Feedback Events 1 | . . . . . . . 1 . . . Corruption 1 | . . . . . . . 1 . . . Feedback Blocked . | . . . . . . . . . . . Robot Schematics Acquired 1 | . . . . . . . . 1 . . Robots Built . | . . . . . . . . . . . Authchips . | . . . . . . . . . . . Time . | . . . . . . . . . . . Total Robot Build Rating . | . . . . . . . . . . . Part Schematics Acquired 6 | . . . 5 . . . . 1 . . Parts Built . | . . . . . . . . . . . Authchips . | . . . . . . . . . . . Time . | . . . . . . . . . . . Total Part Build Rating . | . . . . . . . . . . . Parts Repaired 11 | . . . 3 . . . 4 4 . . Time 506 | . . . 112 . . . 220 174 . . Parts Recycled . | . . . . . . . . . . . Recycled Matter . | . . . . . . . . . . . Retrieved Matter . | . . . . . . . . . . . Retrieved Components . | . . . . . . . . . . . Parts Scanalyzed 5 | . . . 5 . . . . . . . Part Schematics Acquired 5 | . . . 5 . . . . . . . Parts Damaged . | . . . . . . . . . . . Bothacking | -11 -10 -10 -9 -9 -9 -8 -8 -8 -8 -7 ------------ Run | Jun Mat Min Mat Min Exi Min Mat Sto Gar Fac Used RIF Installer . | . . . . . . . . . . . Robots Hacked . | . . . . . . . . . . . Non-combat . | . . . . . . . . . . . Combat . | . . . . . . . . . . . Robot Hacks Applied . | . . . . . . . . . . . Relay Couplers Released 5 | . . . . . . . . . 5 . Machine Destruction 5 | . . . . . . . . . 5 . Fabnet Peak Effective % . | . . . . . . . . . . . Robots Rewired 3 | . . . . . . . . . . 3 Allies Hacked . | . . . . . . . . . . . Hacks Repelled . | . . . . . . . . . . . Allies | -11 -10 -10 -9 -9 -9 -8 -8 -8 -8 -7 -------- Run | Jun Mat Min Mat Min Exi Min Mat Sto Gar Fac Total Allies 8 | . . 4 . . . . . . 1 3 Largest Group 4 | . . 4 3 . . . . . 1 2 Highest-Rated Group 71 | . . 71 63 . . . . . 31 48 Highest-Rated Ally 32 | . . 31 31 . . . . . 31 32 Total Orders . | . . . . . . . . . . . Ally Attacks 64 | . . 7 20 . . . . . . 37 Total Damage 1054 | . . 90 169 . . . . . . 795 Kills 13 | . . 1 3 . . . . . . 9 Allies Corrupted . | . . . . . . . . . . . Allies Melted . | . . . . . . . . . . . Intel | -11 -10 -10 -9 -9 -9 -8 -8 -8 -8 -7 ------- Run | Jun Mat Min Mat Min Exi Min Mat Sto Gar Fac Robot Analysis Total 6 | . . . 2 . . . 2 2 . . Derelict Logs Recovered 3 | . . 2 . 1 . . . . . . Drone Launches . | . . . . . . . . . . . Drone Recoveries . | . . . . . . . . . . . Exploration | -11 -10 -10 -9 -9 -9 -8 -8 -8 -8 -7 ------------- Run | Jun Mat Min Mat Min Exi Min Mat Sto Gar Fac Turns Passed 5761 | 53 378 275 1011 212 139 219 1153 953 827 541 Spaces Moved 6108 | 45 320 580 798 342 251 427 1068 868 795 614 Core 28 | 3 . . . . 1 . . . . 24 Treads . | . . . . . . . . . . . Legs 179 | . . . 179 . . . . . . . Wheels 180 | 42 138 . . . . . . . . . Hover 3260 | . . . 378 342 129 . 158 868 795 590 Flight 2461 | . 182 580 241 . 121 427 910 . . . Fastest Speed 31 | 50 37 37 31 52 50 50 43 43 43 45 Average Speed 51 | 96 64 37 66 52 51 50 54 43 47 50 Slowest Speed 240 | 100 205 37 190 52 200 50 240 45 111 108 Overloaded Moves . | . . . . . . . . . . . Propulsion Burnouts . | . . . . . . . . . . . Robots Hopped 21 | . 2 11 1 . . 4 3 . . . Cave-ins Triggered . | . . . . . . . . . . . Exploration Rate (%) 61 | 3 60 98 67 67 60 69 66 90 76 22 Regions Visited 10 Branch Regions 5 Pre-discovered Areas 3 | . . 2 . . 1 . . . . . Known Exits Taken 3 | . 1 . . . . . 1 1 . . Unknown Exits Taken 6 | 1 . 1 1 1 1 1 . . . . Scrap Searched 4 | . . 1 . 1 . 2 . . . . Spaces Dug 7 | . . . . . . . . . . 7 Terrain Destroyed 508 | . . . 102 . . . 52 48 10 296 Melee . | . . . . . . . . . . . Projectile 31 | . . . . . . . . 19 . 12 AOE 477 | . . . 102 . . . 52 29 10 284 Terrain Rammed . | . . . . . . . . . . . Walls Destroyed . | . . . . . . . . . . . Machines Disabled . | . . . . . . . . . . . Actions | -11 -10 -10 -9 -9 -9 -8 -8 -8 -8 -7 --------- Run | Jun Mat Min Mat Min Exi Min Mat Sto Gar Fac Total 7913 | 52 405 611 1153 359 261 428 1429 1292 1155 768 Wait 724 | . 10 27 152 . . . 122 264 132 17 Move 6058 | 44 315 558 795 341 250 418 1061 868 794 614 Hop 20 | . 2 10 1 . . 4 3 . . . Pick Up 94 | 2 11 2 22 1 . 4 24 12 6 10 Fast Attach 64 | 5 4 . 21 . 3 . 12 7 6 6 Attach 49 | 1 2 . 10 . . . 13 2 4 17 Detach 27 | . 1 . 6 . . . 4 2 3 11 Swap 72 | . 6 . 12 1 1 . 18 16 10 8 Drop 124 | . 9 2 35 2 7 2 27 20 8 12 Fire 543 | . 45 12 99 14 . . 145 101 65 62 Melee . | . . . . . . . . . . . Ram 2 | . . . . . . . . . . 2 Kick . | . . . . . . . . . . . Crush . | . . . . . . . . . . . Escape Stasis 127 | . . . . . . . . . 127 . Rewire 9 | . . . . . . . . . . 9 Trap . | . . . . . . . . . . . Miscellaneous . | . . . . . . . . . . . Route ------- -11/Junkyard -10/Materials (discovered 3 exits: *Mat / *Min x2) -10/Mines (discovered 2 exits: *Mat x2) -9/Materials (discovered 3 exits: *Mat x2 / [*Min]) -9/Mines (discovered 3 exits: *Mat x2 / *Exi) -9/Exiles -8/Mines -8/Materials (discovered 3 exits: *Fac / *Sto x2) -8/Storage (discovered 2 exits: *Fac / Gar) -8/Garrison (discovered 3 exits: *Fac x3) -7/Factory (discovered 1 exit: [*Fac]) History --------- Turn | Location | Event 7 | -11/Junkyard | Discovered new exit (range 15) 54 | -11/Junkyard | Entered Materials 234 | -10/Materials | Discovered new exit (range 14) 301 | -10/Materials | Build established: Mutant 379 | -10/Materials | Discovered new exit (range 6) 389 | -10/Materials | Identified exit to Mines 432 | -10/Materials | Entered Mines 457 | -10/Mines | Received a Mining Laser from a helpful Derelict 539 | -10/Mines | Discovered new exit (range 15) 629 | -10/Mines | Assisted by bots powering up and referring to "LRC-V3" 667 | -10/Mines | Discovered new exit (range 9) 707 | -10/Mines | Entered Materials 707 | -9/Materials | Accompanied by 3 allies 707 | -9/Materials | Evolved 2 slots: Propulsion x2 802 | -9/Materials | Discovered new exit (range 5) 854 | -9/Materials | Repaired Flight Unit? 1000 | -9/Materials | Discovered new exit (range 16) 1073 | -9/Materials | Repaired Hover Unit 1108 | -9/Materials | Destroyed 7 combat bots 1296 | -9/Materials | Discovered new exit (range 15) 1405 | -9/Materials | Build established: Scavenger-Mutant 1479 | -9/Materials | Repaired Enh. Autogun 1507 | -9/Materials | First assault squad dispatched 1718 | -9/Materials | Entered Mines 1757 | -9/Mines | Discovered new exit (range 9) 1766 | -9/Mines | Discovered new exit (range 9) 1810 | -9/Mines | Deemed a non-threat by the Exiles lab entrance 1810 | -9/Mines | Discovered new exit (range 5) 1930 | -9/Mines | Entered Exiles 1943 | -9/Exiles | Met 8R-AWN 1952 | -9/Exiles | Met EX-HEX 1966 | -9/Exiles | Met EX-BIN 1974 | -9/Exiles | Aligned with FarCom system 1974 | -9/Exiles | Given EX-Vault access code 1995 | -9/Exiles | Opened EX-Vault 2003 | -9/Exiles | Found Flying Fortress v7 2015 | -9/Exiles | Warned to stay clear of 0b10 Research branches 2033 | -9/Exiles | Met EX-DEC 2035 | -9/Exiles | Learned location of Zion (-6) 2063 | -9/Exiles | Discovered new exit (range 14) 2069 | -9/Exiles | Left Exiles lab with Flying Fortress v7 2069 | -9/Exiles | Entered Mines 2091 | -8/Mines | Discovered new exit (range 10) 2105 | -8/Mines | Central database locked down 2288 | -8/Mines | Entered Materials 2288 | -8/Materials | Evolved 2 slots: Utility x2 2289 | -8/Materials | Identified exit to Storage 2309 | -8/Materials | Build established: Mutant 2527 | -8/Materials | Garrison activated, responded to threat 2668 | -8/Materials | Repaired Remote Shield 2825 | -8/Materials | Repaired Enh. Autogun 2886 | -8/Materials | Repaired Adv. EMP Blaster 3017 | -8/Materials | Discovered exit to Storage (range 10) 3024 | -8/Materials | Discovered new exit (range 8) 3088 | -8/Materials | First assault squad dispatched 3122 | -8/Materials | Repaired Remote Shield 3441 | -8/Materials | Entered Storage 3586 | -8/Storage | Discovered new exit (range 16) 3741 | -8/Storage | Core integrity fell below 50% 3913 | -8/Storage | Repaired Gravmag System 3974 | -8/Storage | Repaired Aerolev Unit 4021 | -8/Storage | Repaired Hpw. Tractor Beam 4060 | -8/Storage | Repaired Lgt. Nuclear Core 4241 | -8/Storage | First assault squad dispatched 4394 | -8/Storage | Identified exit to Garrison 4394 | -8/Storage | Entered Garrison 4402 | -8/Garrison | Triggered checkpoint 4492 | -8/Garrison | Triggered checkpoint 4543 | -8/Garrison | Learned Factory security intel 4597 | -8/Garrison | Triggered checkpoint 4696 | -8/Garrison | Discovered new exit (range 12) 4769 | -8/Garrison | Discovered new exit (range 68) 4769 | -8/Garrison | Discovered new exit (range 77) 4769 | -8/Garrison | Discovered new exit (range 41) 4885 | -8/Garrison | Triggered checkpoint 4886 | -8/Garrison | Triggered checkpoint 4948 | -8/Garrison | Triggered checkpoint 4980 | -8/Garrison | Triggered checkpoint 4992 | -8/Garrison | Garrison Relay disabled 5035 | -8/Garrison | Triggered checkpoint 5091 | -8/Garrison | Destroyed 8 combat bots 5114 | -8/Garrison | Rescued a captive Derelict 5221 | -8/Garrison | Entered Factory 5221 | -7/Factory | Accompanied by 1 ally 5221 | -7/Factory | Evolved 2 slots: Utility x2 5271 | -7/Factory | Garrison activated, responded to threat 5387 | -7/Factory | High security lockdown imminent 5467 | -7/Factory | High security lockdown engaged 5608 | -7/Factory | Garrison activated, responded to threat 5643 | -7/Factory | Destroyed 17 combat bots 5730 | -7/Factory | Core integrity fell below 50% 5758 | -7/Factory | Discovered new exit (range 14) 5760 | -7/Factory | Core integrity fell below 20% 5762 | -7/Factory | Destroyed by Y-54 Guardian with Gatling Laser Last Messages --------------- 05729_ S-27 Virus destroyed. 05729_ Gravmag System destroyed. 05729_ Fusion Modulator explodes. 05729_ S-27 Virus destroyed. 05729_ Gauss Rifle destroyed. 05729_ Med. Storage Unit destroyed. 05729_ Aerolev Unit destroyed. 05733_ Acquired Gauss Cannon. 05737_ ALERT: Heavy assault forces dispatched. 05743_ C-30 ARC bursts open, deploying its payload. 05743_ P-60 Hacker unfolds itself. 05743_ H-55 Commando unfolds itself. 05743_ P-60 Hacker unfolds itself. 05743_ M-28 Smith unfolds itself. 05743_ Com. Battery destroyed. 05746_ Com. Matter Pod destroyed. 05754_ Hacking Suite destroyed. 05757_ Slug penetrates Wall. 05758_ EXIT=FOUND 05761_ Hacking Suite destroyed. Map ----- +----------------------------------------------------+ | ???# #?????? | | ???# #?????? | | ???# #?????? | | ???###########+#"""""########### #?????? | | ???????????????? #????????????# #?????? | | ???????????????????############# #?????? | | ??????????????????# # #?????? | | ##????????????????# # #?????? | | #????????????????# # #?????? | | #######???????????# # #?????? | | [ #???????????# # #?????? | | "#???????????# # #?????? | | "#???????????# # #?????? | | "#??????????# # #?????? | | "#??????????# # #?????? | | #?????????# p/ #?????? | | #?????????# ! # #?????? | | #?????????# # #?????? | | #?????????#########+#### #?????? | | #???????????????# p #?????? | | ???????????????# h #?????? | | ##??????????????#"" #?????? | | ????????????????#"T Y% +?????? | | "???????????????????#"" % #?????? | | #???????????????????# #?????? | | #???????????????????#@ #?????? | | #?????????????????? #?????? | | #???????????????? Y #?????? | | #?????????????? """ """ YY #?????? | | #????????????# """ """ #?????? | | #????????????# """ """ < #?????? | | ###????????"G"?# #?????? | | #????????? " "# ? #?????? | | #????????? ? ?? #####?????? | | #???????? ? #?????????? | | %#???????# ??? #?????????? | | #??##### "" ???? #?????????? | | #### ????? #?????????? | | ## "= ????? ?????????????? | | ## # # [%" ???????????????????? | | ! % ???????????????????? | | ! =% ] ??????????????????? | | = ??????????????????? | | !! ??????????????????? | | ! ??????????????????? | | "## #########????????????????????? | | #### ???????????????????????? | | #####??? #??????????????????????? | | ???????? #??????????????????????? | | ???????? ???????????????????????? | +----------------------------------------------------+ Best States ------------- Heat Dissipation 58 Energy Generation 16 Energy Capacity 490 Matter Stores 450 Matter Capacity 450 Sight Range 16 Terrain Scan Density 10 Additional Mass Support 6 Armor Coverage 225 Propulsion Shielding 66 Evasion (%) 63 Targeting Accuracy 8 Recoil Reduction 4 Offensive Hacking 20 Authchip Count 2 Item Schematics ----------------- Machine Analyzer | -9/Materials | Scanalyzed Imp. Propulsion Shielding | -9/Materials | Scanalyzed Com. Matter Pod | -9/Materials | Scanalyzed Hover Unit | -9/Materials | Scanalyzed Lgt. Ion Engine | -9/Materials | Scanalyzed Hyb. Fission Core | -8/Storage | Hacked Robot Schematics ------------------ A-02 Transporter | -8/Storage | Hacked Fabricated ------------ Nothing Alien Tech Used ----------------- None Achievements -------------- None Challenges ------------ None Game ------ Seed SchematicDecoderDoomcannon Manual? 0 Play Time 02:20:04 Cumulative 77.5 hours Start 2024.01.21 @ 19:39:43 End 2024.01.21 @ 23:10:38 Sessions 1 Manual Loads 0 Difficulty Rogue Special Mode None Game No. 45 Rogue 45 Adventurer 0 Explorer 0 Win Type - Total 0 Types 0/0/0/0/0/0/0/0/0 Lore% 55 Gallery% 53 Achievement% 44 Wizard Run 0 Options --------- ASCII 0 Keyboard 1 Movement Arrows Keybinds 0 Fullscreen 1 Font 12/Proggy Map View 83x54 Tactical HUD 1 Map Filters NONE Filters NONE Steam 0 RUN: ae6b7e2b-460b-4dbe-bd66-ef9cee0291dc